Cogmind - Beta 9.1 @@@ ROGUE MODE // 2019.11.03 @ 00:59:11 // Halloween2019/Abominations Player: Trione Result: Destroyed by Minor Abomination with Pulse Rifle Performance ------------- Evolutions (1) 500 Regions Visited (2) 400 Robots Destroyed (2) 10 Value Destroyed (66) 66 Prototype IDs (0) 0 Alien Tech Used (0) 0 Bonus (0) 0 TOTAL SCORE: 976 Bonus ------- None Cogmind --------- Core Integrity 0/400 Matter 300/300 Energy 98/100 System Corruption 0% Temperature Cool (9) Location -9/Materials Parts ------- Power (1) Propulsion (2) Utility (4) Weapon (2) Inventory (4) Light Treads Light Treads Light Assault Rifle Grenade Launcher Peak State ------------ Power Ion Engine Propulsion Wheel Compact Wheel Utility Small Storage Unit Weapon Small Laser Assault Rifle Inventory Light Ion Engine Aluminum Leg [Rating: 6] Favorites ----------- Power Ion Engine Engine Ion Engine Propulsion Compact Wheel Wheel Compact Wheel Utility Small Storage Unit Storage Small Storage Unit Weapon Small Laser Energy Gun Small Laser Ballistic Gun Assault Rifle Build | -11 -10 -9 ------- Run | Scr Mat Mat Slots Evolved 2 | . . 2 Power . | . . . Propulsion . | . . . Utility 2 | . . 2 Weapon . | . . . Parts Attached 6 | 6 . . Power 1 | 1 . . Engine 1 | 1 . . Core . | . . . Reactor . | . . . Propulsion 2 | 2 . . Treads . | . . . Leg . | . . . Wheel 2 | 2 . . Hover . | . . . Flight . | . . . Utility 1 | 1 . . Device . | . . . Storage 1 | 1 . . Processor . | . . . Hackware . | . . . Protection . | . . . Artifact . | . . . Weapon 2 | 2 . . Energy Gun 1 | 1 . . Energy Cannon . | . . . Ballistic Gun 1 | 1 . . Ballistic Cannon . | . . . Launcher . | . . . Special Weapon . | . . . Impact Weapon . | . . . Slashing Weapon . | . . . Piercing Weapon . | . . . Special Melee Weapon . | . . . Unidentified Prototypes . | . . . Parts Lost . | . . . Power . | . . . Propulsion . | . . . Utility . | . . . Weapon . | . . . Highest Loss Streak . | . . . Average Slot Usage (%) 20 | . 48 . Engine 2 | . 6 . Wheel 7 | . 17 . Storage 4 | . 9 . Energy Gun 3 | . 7 . Ballistic Gun 3 | . 7 . Naked Turns 155 | . 38 117 Heaviest Build 12 | 12 12 . Greatest Support 26 | 26 26 3 Greatest Overweight (x) . | . . . Average Overweight (x) . | . . . Largest Inventory Capacity 6 | 6 6 4 Average Capacity 4 | 5 5 4 Most Carried 6 | 6 5 4 Average Carried 3 | 3 4 4 Final Capacity 6 | 6 4 4 Final Carried 4 | 4 4 4 Class Distribution -------------------- 100% | Mutant Dominant Class ---------------- Mutant | -10/Materials Mutant | -9/Materials Resources | -11 -10 -9 ----------- Run | Scr Mat Mat Matter Collected 278 | 266 12 . Remotely . | . . . Salvage Created 122 | 58 64 . Parts 1 | 1 . . Haulers Intercepted . | . . . Recyclers Shooed 1 | 1 . . Parts Field Recycled . | . . . Retrieved Matter . | . . . Parts Self-Destructed . | . . . Prevented . | . . . Kills | -11 -10 -9 ------- Run | Scr Mat Mat Combat Hostiles Destroyed 1 | . 1 . Guns 1 | . 1 . Classes Destroyed 2 | 1 1 . Recycler 1 | 1 . . Abomination 1 | . 1 . Best Kill Streak 1 | 1 1 . Combat Bots Only 1 | . 1 . Max Kills in Single Turn 1 | 1 1 . Gunslinging . | . . . Exploded . | . . . Melee . | . . . Uniques/NPCs Destroyed . | . . . Combat | -11 -10 -9 -------- Run | Scr Mat Mat Damage Taken 604 | . 200 404 Core 574 | . 170 404 Absorbed by Shields . | . . . Core Remaining (%) 66 | 100 32 . Volleys Fired 6 | 2 4 . Largest 2 | 2 2 . Hottest 60 | 60 60 . Shots Fired 12 | 4 8 . Gun 12 | 4 8 . Cannon . | . . . Launcher . | . . . Special . | . . . Kinetic 6 | 2 4 . Thermal 6 | 2 4 . Explosive . | . . . Electromagnetic . | . . . Robot Hit Streak 5 | 3 5 . Robot Miss Streak 2 | . 2 . Penetration Max . | . . . Secondary Targets . | . . . Shots Hit Robots 9 | 3 6 . Core Hits 5 | 2 3 . Critical Hits . | . . . Critical Kills . | . . . Critical Parts Destroyed . | . . . Melee Attacks . | . . . Impact . | . . . Slashing . | . . . Piercing . | . . . Sneak Attacks . | . . . Combat Hostiles . | . . . Follow-up Attacks . | . . . Damage Inflicted 97 | 34 63 . Guns 97 | 34 63 . Cannons . | . . . Explosions . | . . . Melee . | . . . Ramming . | . . . Kinetic 36 | 14 22 . Thermal 61 | 20 41 . Explosive . | . . . Electromagnetic . | . . . Impact . | . . . Slashing . | . . . Piercing . | . . . Highest Corruption . | . . . Average Corruption . | . . . Corruption Purged . | . . . Overload Shots . | . . . Overflow Damage . | . . . Projectiles . | . . . Explosions . | . . . Melee . | . . . Knockbacks . | . . . Impact . | . . . Kinetic . | . . . Secondary . | . . . Self-Inflicted Damage . | . . . Shots . | . . . Rammed . | . . . Targets Rammed . | . . . Kicked . | . . . Crushed . | . . . Highest Temperature 215 | . 215 . Average Temperature 109 | . 109 . Received Heat Transfer 117 | . . 117 Siege Activations . | . . . Robots Corrupted . | . . . Combat Hostiles . | . . . Parts Fried . | . . . Impact Corruptions . | . . . Robots Melted . | . . . Combat Hostiles . | . . . Parts Melted . | . . . Heat Transferred 87 | 50 37 . Parts Sabotaged . | . . . Parts Stolen . | . . . Parts Stripped . | . . . Power Chain Reactions . | . . . Missiles Intercepted . | . . . Alert | -11 -10 -9 ------- Run | Scr Mat Mat Peak Influence 37 | 5 18 37 Average Influence 15 | 2 9 26 Maximum Alert Level . | . . . Low Security (%) 100 | . . . Level 1 . | . . . Level 2 . | . . . Level 3 . | . . . Level 4 . | . . . Level 5 . | . . . High Security . | . . . Max Security . | . . . Squads Dispatched 2 | . 1 1 Investigation 1 | . . 1 Extermination . | . . . Reinforcement 1 | . 1 . Assault . | . . . Garrison . | . . . Intercept . | . . . Construction Impeded . | . . . Haulers Reinforced . | . . . Stealth | -11 -10 -9 --------- Run | Scr Mat Mat Distress Signals 1 | . . 1 Communications Jammed . | . . . Distress Signals . | . . . Times Spotted 19 | . 7 12 Peak Tracking Total 7 | . 5 7 Tactical Retreats . | . . . Traps | -11 -10 -9 ------- Run | Scr Mat Mat Traps Triggered 2 | . 2 . Indirectly . | . . . Trap Hack Attempts . | . . . Triggered . | . . . Disarmed . | . . . Reprogrammed . | . . . Reused . | . . . Traps Extracted . | . . . Installed . | . . . Triggered . | . . . Machines | -11 -10 -9 ---------- Run | Scr Mat Mat Machines Disabled . | . . . Max in Single Turn . | . . . Machines Sabotaged . | . . . Garrisons Compromised . | . . . Overloaded Fab Kills . | . . . Fab Network Shutdowns . | . . . Hacking | -11 -10 -9 --------- Run | Scr Mat Mat Machines Accessed 1 | . . 1 Terminals 1 | . . 1 Fabricators . | . . . Repair Stations . | . . . Recycling Units . | . . . Scanalyzers . | . . . Garrison Access . | . . . Total Hacks 2 | . . 2 Successful 2 | . . 2 Failed . | . . . Catastrophic . | . . . Database Lockouts . | . . . Manual 1 | . . 1 Terminals 2 | . . 2 Fabricators . | . . . Repair Stations . | . . . Recycling Units . | . . . Scanalyzers . | . . . Garrison Access . | . . . Terminal Hacks 1 | . . 1 Record 1 | . . 1 Fabricator Hacks . | . . . Repair Station Hacks . | . . . Recycling Unit Hacks . | . . . Scanalyzer . | . . . Garrison Access Hacks . | . . . Unauthorized Hacks 2 | . . 2 Terminals 1 | . . 1 Track 1 | . . 1 Fabricators . | . . . Repair Stations . | . . . Recycling Units . | . . . Scanalyzers . | . . . Garrison Access . | . . . Data Cores Recovered . | . . . Used . | . . . Hacking Detections 1 | . . 1 Full Trace Events . | . . . Feedback Events . | . . . Feedback Blocked . | . . . Robot Schematics Acquired . | . . . Robots Built . | . . . Matter . | . . . Time . | . . . Total Robot Build Rating . | . . . Part Schematics Acquired . | . . . Parts Built . | . . . Matter . | . . . Time . | . . . Total Part Build Rating . | . . . Parts Repaired . | . . . Time . | . . . Parts Recycled . | . . . Recycled Matter . | . . . Retrieved Matter . | . . . Retrieved Components . | . . . Parts Scanalyzed . | . . . Part Schematics Acquired . | . . . Parts Damaged . | . . . Bothacking | -11 -10 -9 ------------ Run | Scr Mat Mat Used RIF Installer . | . . . Robots Hacked . | . . . Non-combat . | . . . Combat . | . . . Robot Hacks Applied . | . . . Relay Couplers Released . | . . . Robots Rewired . | . . . Allies Hacked . | . . . Hacks Repelled . | . . . Allies | -11 -10 -9 -------- Run | Scr Mat Mat Total Allies . | . . . Largest Group . | . . . Highest-Rated Group . | . . . Highest-Rated Ally . | . . . Total Orders . | . . . Ally Attacks . | . . . Total Damage . | . . . Kills . | . . . Allies Corrupted . | . . . Allies Melted . | . . . Intel | -11 -10 -9 ------- Run | Scr Mat Mat Robot Analysis Total . | . . . Derelict Logs Recovered . | . . . Drone Launches . | . . . Drone Recoveries . | . . . Exploration | -11 -10 -9 ------------- Run | Scr Mat Mat Turns Passed 265 | 57 91 117 Spaces Moved 376 | 40 116 220 Core 298 | 1 77 220 Treads . | . . . Legs . | . . . Wheels 78 | 39 39 . Hover . | . . . Flight . | . . . Fastest Speed 50 | 50 50 50 Average Speed 58 | 89 63 50 Slowest Speed 100 | 100 100 50 Overloaded Moves . | . . . Propulsion Burnouts . | . . . Robots Hopped . | . . . Cave-ins Triggered . | . . . Exploration Rate (%) 16 | 3 31 16 Regions Visited 2 Branch Regions . Pre-discovered Areas . | . . . Known Exits Taken . | . . . Unknown Exits Taken 2 | 1 1 . Scrap Searched . | . . . Spaces Dug . | . . . Terrain Destroyed . | . . . Melee . | . . . Projectile . | . . . AOE . | . . . Actions | -11 -10 -9 --------- Run | Scr Mat Mat Total 406 | 55 124 227 Wait 11 | . 4 7 Move 374 | 39 115 220 Hop . | . . . Pick Up 7 | 6 1 . Fast Attach 6 | 6 . . Attach . | . . . Detach . | . . . Swap . | . . . Drop 2 | 2 . . Fire 6 | 2 4 . Melee . | . . . Ram . | . . . Kick . | . . . Crush . | . . . Escape Stasis . | . . . Rewire . | . . . Trap . | . . . Miscellaneous . | . . . Route ------- -11/Scrapyard -10/Materials -9/Materials History --------- Turn | Location | Event 22 | -11/Scrapyard | Discovered new exit (range 16) 58 | -11/Scrapyard | Entered Materials 111 | -10/Materials | Released all parts (2) 114 | -10/Materials | Discovered new exit (range 6) 131 | -10/Materials | Core integrity fell below 50% 141 | -10/Materials | Discovered new exit (range 14) 149 | -10/Materials | Entered another Materials area 149 | -9/Materials | Evolved 2 slots: Utility x2 240 | -9/Materials | Core integrity fell below 50% 264 | -9/Materials | Core integrity fell below 20% 266 | -9/Materials | Destroyed by Minor Abomination with Pulse Rifle Last Messages --------------- for processing in the lower levels of [Complex 0b10]. Initially the mining tunnels only rarely experienced hostile [Derelict] activity, not enough to justify allocating significant resources to defense. This has recently changed with the [Infestation], for which the current response is to dispatch garrisoned Demolishers until a more permanent solution can be put in place. 00191_ Lesser Abomination spits out Lgt. Assault Rifle. 00191_ Lesser Abomination absorbs Lgt. Assault Rifle. 00194_ S-10 Pest destroyed. 00198_ Lesser Abomination absorbs Wheel. 00202_ Lesser Abomination absorbs Lgt. Ion Engine. 00207_ T-07 Excavator destroyed. 00208_ Minor Abomination forced to warp away. 00208_ Wheel blinks away. 00210_ Lesser Abomination absorbs Wheel. 00210_ 23 Matter blinks away. 00211_ Minor Abomination absorbs Wheel. 00211_ Forced to warp away. 00220_ Lesser Abomination forced to warp away. 00221_ 15 Matter blinks away. Map ----- +----------------------------------------------------+ | # # # """#??????????????? | | # + + """#??????????????? | | # # # """#??????????????? | | # # # #?????? ??????? | | #!! # # #?????"""??????? | | #!! # # #?????"""??????? | | #! # # #???? ""???????? | | # # ########?###+###??????? | | ###### ########## #??????? | | ?????# #??????? | | ?????# | T #??????? | | ###??# #??????? | | # ?# ##### #??????? | | # ?# % #???# #####??????? | | # % # #???# #??????????? | | # %%# #???# #??????????? | | # ; #???# #??????????? | | # # ### ##???# #??????????? | | # # #?# #????# #??????????? | | # ?# #?# #????# #??????????? | | # ?# #?#+#????# #??????????? | | ###??# #????????# #??????????? | | ?????# #??????###A#??????????? | | ?????# #???? # ###########? | | ?????# #?? # ## #? | | ?????# @ # # ## """ #? | | ?????+ + # ## """ #? | | ?????# ######## ## """ #? | | ?????# A####### # #? | | ?????# A% # """ #? | | ?????# + """ #? | | ?????# # """ #? | | ?????# #### # #? | | ?????# #??## ############ | | ?????# #???# #????# | | ?????# #???# #????# " | | ?????########???# #????# T | | ????????????????# ###### " | | ????????????????# # | | ????????????????# + | | ????????????????# # | | ????????????????# #### # """ | | ????????????????# #??# # """ | | ?????????????########??# # """ | | ?????????????# #??# # | | ?????????????# #### ####### | | ?????????????# + #?????? | | ?????????????# | ######?????? | | ?????????????# #??????????? | | ?????????????# | #??????????? | +----------------------------------------------------+ Best States ------------- Heat Dissipation 28 Energy Generation 10 Energy Capacity 250 Matter Stores 300 Matter Capacity 300 Sight Range 16 Terrain Scan Density 10 Evasion (%) 50 Item Schematics ----------------- None Robot Schematics ------------------ None Fabricated ------------ Nothing Alien Tech Used ----------------- None Achievements -------------- None Challenges ------------ None Game ------ Seed CentriumSigixNegator Manual? 0 Play Time 00:04:32 Cumulative 808.3 hours Start 2019.11.03 @ 00:56:00 End 2019.11.03 @ 00:59:11 Sessions 1 Manual Loads 0 Difficulty Rogue Special Mode Halloween2019/Abominations Game No. 310 Rogue 310 Adventurer 0 Explorer 0 Win Type - Total 20 Types 10/1/7/0/0/0/2 Lore% 95 Gallery% 94 Achievement% 79 Wizard Run 0 Options --------- ASCII 0 Keyboard 0 Movement Vi Keybinds 0 Fullscreen 0 Font 12/Crisp Map View 76x50 Tactical HUD 1 Map Filters NONE Filters NONE Steam X RUN: 7275e05f-4dc0-4581-abf1-36cc8e6cc7e9